fUSD/lending_fUSD_20240920
["ID","MTS","AMOUNT","RATE_DAILY","PERIOD"]
[338629128,1726815039862,-373.68919148,0.00013,2]
[338629129,1726815039875,-640.82,0.00013,2]
[338629130,1726815039888,-1079.800005,0.00013,2]
[338629131,1726815039900,-5520.4318433,0.00013,2]
[338629132,1726815039912,-2544.08778353,0.00013,2]
[338629133,1726815039925,-503.4787228,0.00013,2]
[338629134,1726815039937,-3593.08737091,0.00013,2]
[338629135,1726815039949,-322.85018007,0.00013,2]
[338629136,1726815039961,-24104.6103854,0.00013,2]
[338629137,1726815039974,-347.78074878,0.00013,2]
[338629138,1726815039986,-540.18000005,0.00013,2]
[338629235,1726815042594,-311.308985,0.000128,2]
[338629237,1726815042608,-463.93628826,0.000128,2]
[338629239,1726815042620,-3939.92439593,0.000128,2]
[338629246,1726815042686,-602.81139616,0.000128,2]
[338629247,1726815042696,-15910.24400368,0.00013,2]
[338629248,1726815042764,-6428.28499988,0.00013,2]
[338629249,1726815042777,-2694.80145435,0.00013,2]
[338629250,1726815042789,-935.898057,0.00013,2]
[338629251,1726815042801,-27020.25076693,0.00013,2]
[338629252,1726815042814,-883.32723249,0.00013,2]
[338629253,1726815042827,-297.59077079,0.00013,2]
[338629254,1726815042839,-155194.78781842,0.00013,2]
[338629255,1726815042850,-710.34553941,0.00013,2]
[338629256,1726815042860,-178610.2134229,0.00013,2]
[338629257,1726815042872,-21934.19,0.00013,2]
[338629258,1726815042885,-1364.2199562,0.00013,2]
[338629259,1726815042898,-630.18302999,0.00013,2]
[338629263,1726815045591,-354.11893621,0.00013,2]
[338629264,1726815045603,-1900.0,0.00013,2]
[338629265,1726815045615,-13570.36873791,0.00013,2]
[338629266,1726815045628,-1577.24000052,0.00013,2]
[338629274,1726815049191,812.41,0.00010959,2]
[338629275,1726815059265,171.27,0.00010959,2]
[338629276,1726815161876,250.0,0.00012588,2]
[338629278,1726815293263,187.89,0.00010564,2]
[338629279,1726815450835,1000.0,0.00012252,2]
[338629280,1726815499425,501.0,0.00023,120]
[338629281,1726815515648,167.07,0.00012258,2]
[338629283,1726815684903,156.05,0.00010959,2]
[338629284,1726815858798,250.0,0.00012382,2]
[338629285,1726815877451,203.98,0.00010476,2]
[338629286,1726815877480,203.98,0.0001274,2]
[338629287,1726815992034,200.0,0.00012438,2]
[338629288,1726816005980,510.0,0.00022876,120]
[338629289,1726816092214,241.08,0.00012449,2]
[338629290,1726816164700,1354.760442,0.00012512,2]
[338629291,1726816165057,1354.760442,0.00012669,2]
[338629292,1726816183348,184.124889,0.00012512,2]
[338629293,1726816183709,184.124889,0.00012721,2]
[338629294,1726816184735,161.130254,0.00012512,2]
[338629295,1726816188088,194.441136,0.00012512,2]
[338629298,1726816231984,-577.05,0.000128,2]
[338629299,1726816231993,-150.0,0.000128,2]
[338629300,1726816232003,-1354.760442,0.00012825,2]
[338629301,1726816232012,-299.2524,0.000129,2]
[338629302,1726816232021,-347.337,0.000129,2]
[338629303,1726816232030,-175.32119271,0.000129,2]
[338629304,1726816232040,-272.30410232,0.000129,2]
[338629305,1726816232049,-180.05783861,0.000129,2]
[338629306,1726816232059,-7190.16915009,0.000129,2]
[338629307,1726816232068,-150.0,0.00012905,2]
[338629308,1726816232078,-184.124889,0.00012929,2]
[338629309,1726816232087,-500.0,0.00012973,2]
[338629310,1726816232097,-1354.760442,0.00012981,2]
[338629311,1726816232115,-1016.9476,0.00012986,2]
[338629312,1726816232125,-153.0,0.0001299,2]
[338629313,1726816232134,-345.261,0.00012999,2]
[338629314,1726816232145,-175.909,0.00012999,2]
[338629315,1726816232154,-150.0,0.00012999,2]
[338629316,1726816232168,-41013.56321268,0.00013,2]
[338629317,1726816232182,-811.05669613,0.00013,2]
[338629319,1726816232198,-538.42847648,0.00013,2]
[338629322,1726816232213,-5826.983018,0.00013,2]
[338629324,1726816232224,-479.57301165,0.00013,2]
[338629326,1726816232235,-337.36323209,0.00013,2]
[338629328,1726816232247,-568.42,0.00013,2]
[338629330,1726816237770,-1005.72191902,0.000129,2]
[338629331,1726816237811,-3568.98755491,0.000129,2]
[338629332,1726816237820,-566.68354179,0.00013,2]
[338629333,1726816237831,-1939.80159629,0.00013,2]
[338629334,1726816237850,-1607.45700912,0.00013,2]
[338629339,1726816239790,-2847.11698804,0.00013,2]
[338629340,1726816239802,-735.24402019,0.00013,2]
[338629341,1726816239813,-1414.98691557,0.00013,2]
[338629342,1726816239949,-14149.63151993,0.00013,2]
[338629343,1726816239961,-653.12144727,0.00013,2]
[338629344,1726816239972,-384.9297592,0.00013,2]
[338629359,1726816240263,-1428.000035,0.00013,2]
[338629363,1726816240274,-563.31,0.00013,2]
[338629366,1726816240285,-14743.1286155,0.00013,2]
[338629381,1726816242981,-688.96119496,0.000129,2]
[338629382,1726816243027,-52.83834804,0.000129,2]
[338629383,1726816243036,-3881.64698382,0.00013,2]
[338629384,1726816243048,-486.78599785,0.00013,2]
[338629434,1726816245856,-33071.64476065,0.00013,2]
[338629435,1726816245902,-637.99,0.00013,2]
[338629436,1726816245916,-383.378996,0.00013,2]
[338629437,1726816245949,-5801.86912697,0.00013,2]
[338629438,1726816249515,1595.06717243,0.00012288,2]
[338629439,1726816262815,355.41,0.00010959,2]
[338629440,1726816273314,296.17,0.00010959,2]
[338629441,1726816283830,246.81,0.00010959,2]
[338629442,1726816294341,205.68,0.00010959,2]
[338629443,1726816305095,171.4,0.00010959,2]
[338629444,1726816315623,857.01,0.00010959,2]
[338629445,1726816434028,183.58,0.00010563,2]
[338629446,1726816440539,250.0,0.0001247,2]
[338629447,1726816518919,840.0,0.00012386,2]
[338629448,1726816628883,230.17,0.00012432,2]
[338629449,1726816650810,500.0,0.00022999,120]
[338629450,1726816651064,500.0,0.00022999,120]
[338629451,1726816651332,500.0,0.00022999,120]
[338629452,1726816651594,500.0,0.00022999,120]
[338629453,1726816651862,182.72997484,0.00022999,120]
[338629454,1726816651906,500.0,0.00022999,120]
[338629455,1726816652154,500.0,0.00022999,120]
[338629456,1726816652443,500.0,0.00022999,120]
[338629457,1726816652687,500.0,0.00022999,120]
[338629458,1726816652991,500.0,0.00022999,120]
[338629459,1726816653404,500.0,0.00022999,120]
[338629460,1726816653556,500.0,0.00022999,120]
[338629461,1726816653823,500.0,0.00022999,120]
[338629462,1726816654071,500.0,0.00022999,120]
[338629463,1726816654349,500.0,0.00022999,120]
[338629464,1726816654618,500.0,0.00022999,120]
[338629465,1726816654879,500.0,0.00022999,120]
[338629466,1726816655132,382.6,0.00022999,120]
[338629467,1726816764832,153.03,0.00010959,2]
[338629468,1726816773240,602.396302,0.00012512,2]
[338629469,1726816773557,602.396302,0.00012669,2]
[338629470,1726816893103,1000.0,0.00012329,2]
[338629471,1726816893404,1000.0,0.00012329,2]
[338629472,1726816893686,1000.0,0.00012329,2]
[338629473,1726816893989,1000.0,0.00012329,2]
[338629474,1726816894355,1000.0,0.00012329,2]
[338629475,1726816894634,1000.0,0.00012329,2]
[338629476,1726816894926,1000.0,0.00012329,2]
[338629477,1726816895226,1000.0,0.00012329,2]
[338629478,1726816895526,1000.0,0.00012329,2]
[338629479,1726816895825,1000.0,0.00012329,2]
[338629480,1726816896132,1000.0,0.00012329,2]
[338629481,1726816896423,1000.0,0.00012329,2]
[338629482,1726816896792,1000.0,0.00012329,2]
[338629483,1726816897083,1000.0,0.00012329,2]
[338629484,1726816897371,1037.88444175,0.00012329,2]
[338629485,1726816956220,186.54,0.00010396,2]
[338629486,1726816956448,186.54,0.00012659,2]
[338629487,1726816978245,250.0,0.00012285,2]
[338629488,1726817155276,167.07,0.00012258,2]
[338629489,1726817219314,306.23822229,0.00022876,120]
[338629492,1726817291795,153.79,0.00010959,2]
[338629512,1726817431908,-1308.0,0.0001278,2]
[338629514,1726817431919,-577.08950482,0.0001278,2]
[338629517,1726817431931,-3207.60087916,0.0001278,2]
[338629519,1726817431943,-1757.76879465,0.0001278,2]
[338629527,1726817432506,-5165.1729525,0.0001278,2]
[338629528,1726817432517,-7116.52694363,0.0001278,2]
[338629531,1726817437901,-427.20419193,0.0001278,2]
[338629534,1726817437944,-691.69526512,0.0001278,2]
[338629536,1726817437955,-2005.24140047,0.0001278,2]
[338629537,1726817438082,-31092.58433636,0.0001278,2]
[338629538,1726817438095,-150.0,0.00012824,2]
[338629539,1726817438104,-602.396302,0.00012825,2]
[338629540,1726817438115,-257.94104147,0.00012825,5]
[338629541,1726817438128,-623.44199861,0.00012825,5]
[338629542,1726817438140,-924.30223096,0.00012825,5]
[338629543,1726817438151,-599.055,0.00012825,5]
[338629544,1726817438162,-1332.05846622,0.00012825,5]
[338629545,1726817438179,-3733.51914188,0.00012825,5]
[338629693,1726817440010,-476.16893402,0.00012825,5]
[338629694,1726817440159,-767.79251998,0.00012825,5]
[338629695,1726817440171,-3392.25797285,0.00012825,5]
[338629696,1726817440181,-213.0,0.0001287,2]
[338629697,1726817440190,-1748.27828253,0.0001287,2]
[338629698,1726817440199,-175.32119271,0.000129,2]
[338629699,1726817440209,-217.84328184,0.000129,2]
[338629700,1726817440218,-4563.29465403,0.000129,2]
[338629706,1726817443197,-1907.85758106,0.000129,2]
[338629707,1726817443207,-1345.35493274,0.000129,2]
[338629708,1726817443217,-500.0,0.00012973,2]
[338629709,1726817443227,-602.396302,0.00012981,2]
[338629710,1726817443237,-499.99,0.0001299,2]
[338629712,1726817443247,-153.0,0.0001299,2]
[338629713,1726817443256,-233.091813,0.00012997,2]
[338629714,1726817443266,-653.7304958,0.00012998,2]
[338629715,1726817443276,-198.17899671,0.00012999,2]
[338629717,1726817443287,-332.608,0.00012999,2]
[338629719,1726817443299,-591.0,0.00013,2]
[338629721,1726817443308,-162255.09618271,0.00013,2]
[338629782,1726817444009,575.150116,0.00012512,2]
[338629813,1726817444334,575.150116,0.00012669,2]
[338629922,1726817445954,-575.150116,0.00012825,2]
[338629923,1726817445964,-180.05783861,0.000129,2]
[338629924,1726817445974,-575.150116,0.00012981,2]
[338629925,1726817445984,-5034.24192939,0.00013,2]
[338629926,1726817445999,-1452.92673796,0.00013,2]
[338629927,1726817446280,-1389.19713611,0.00013,2]
[338629932,1726817458505,181.41,0.00010959,2]
[338629933,1726817469106,151.17,0.00010959,2]
[338629934,1726817479620,755.89,0.00010959,2]
[338629935,1726817486155,541.904177,0.00012512,2]
[338629936,1726817486812,541.904177,0.00012669,2]
[338629937,1726817548595,250.0,0.00012487,2]
[338629938,1726817564738,1000.0,0.00012501,2]
[338629939,1726817651244,204.33,0.00010368,2]
[338629940,1726817651456,204.33,0.00012632,2]
[338629941,1726817724941,192.86,0.00012257,2]
[338629942,1726817790277,485.18373979,0.00012725,2]
[338629943,1726817816841,161.130255,0.00012512,2]
[338629944,1726817816900,347.514068,0.00012512,2]
[338629945,1726817817222,347.514068,0.00012669,2]
[338629946,1726817876580,172.99,9.846e-05,2]
[338629947,1726817894342,170.69,0.00010959,2]
[338629948,1726817995380,18598.64,0.00012312,2]
[338629949,1726818052167,165.94,0.00012227,2]
[338629950,1726818052365,165.94,0.00012248,2]
[338629951,1726818052564,165.94,0.00012268,2]
[338629952,1726818052779,165.94,0.00012288,2]
[338629953,1726818081249,250.0,0.00012227,2]
[338629954,1726818147110,200.0,0.00012306,2]
[338629955,1726818189714,177.85,0.00012277,2]
[338629956,1726818203161,183.89,0.0001036,2]
[338629957,1726818203377,183.89,0.00012624,2]
[338629963,1726818330062,189.94,0.0001225,2]
[338629966,1726818375935,500.0,0.00022999,120]
[338629967,1726818376962,500.0,0.00022999,120]
[338629968,1726818377212,500.0,0.00022999,120]
[338629969,1726818377460,500.0,0.00022999,120]
[338629970,1726818377788,500.0,0.00022999,120]
[338629971,1726818378067,500.0,0.00022999,120]
[338629972,1726818392344,350.0,0.000127,2]
[338629976,1726818608245,387.96,0.00012257,2]
[338629977,1726818624080,250.0,0.00012231,2]
[338629982,1726818632067,-1104.86292111,0.00012793,4]
[338629983,1726818632076,-541.904177,0.00012825,2]
[338629984,1726818632086,-347.514068,0.00012825,2]
[338629985,1726818632095,-171.58689666,0.000129,2]
[338629986,1726818632105,-174.27462548,0.000129,2]
[338629987,1726818632113,-222.88946008,0.000129,2]
[338629988,1726818632123,-547.3713767,0.000129,2]
[338629989,1726818632132,-541.904177,0.00012981,2]
[338629990,1726818632142,-347.514068,0.00012981,2]
[338629991,1726818632151,-1418.43416502,0.0001299,2]
[338629992,1726818632160,-158.14,0.0001299,2]
[338629993,1726818632170,-158.14,0.0001299,2]
[338629994,1726818632179,-233.091813,0.00012996,2]
[338629995,1726818632188,-499.99,0.00012996,2]
[338629996,1726818632198,-233.091813,0.00012997,2]
[338629997,1726818632207,-233.091813,0.00012998,2]
[338629998,1726818632216,-500.0,0.00012999,2]
[338629999,1726818632226,-346.88544357,0.00012999,2]
[338630000,1726818632235,-233.091813,0.00012999,2]
[338630001,1726818632244,-266.086,0.00012999,2]
[338630002,1726818632253,-150.0,0.00012999,2]
[338630003,1726818632262,-534.0,0.00013,2]
[338630004,1726818632272,-54909.13536936,0.00013,2]
[338630005,1726818632283,-288.27614105,0.00013,2]
[338630006,1726818632295,-5820.96311195,0.00013,2]
[338630007,1726818632306,-752.82036285,0.00013,2]
[338630008,1726818634585,-500.0,0.00012973,2]
[338630009,1726818634595,-72148.63396227,0.00013,2]
[338630010,1726818634605,-563922.2620932,0.00013,2]
[338630011,1726818634616,-570.33569236,0.00013,2]
[338630012,1726818634693,-365.06759219,0.00013,2]
[338630127,1726818638304,-330.172,0.000129,2]
[338630128,1726818638314,-3180.548,0.00013,2]
[338630129,1726818638326,-12294.39456971,0.00013,2]
[338630130,1726818638357,-277814.71848681,0.00013,2]
[338630131,1726818638413,-2713.17171302,0.00013,2]
[338630132,1726818638468,-1700.51020281,0.00013,2]
[338630133,1726818638626,-2000.76457013,0.00013,2]
[338630532,1726818643141,-653.44587086,0.00013,2]
[338630539,1726818643193,-496.43304001,0.00013,2]
[338630545,1726818643248,-7993.45022661,0.00013,2]
[338630552,1726818643301,-427.18428536,0.00013,2]
[338630554,1726818643312,-537.88,0.00013,2]
[338630556,1726818643323,-935.05871083,0.00013,2]
[338630569,1726818643461,-1255.06367634,0.00013,2]
[338630640,1726818646288,-3026.39999999,0.00013,2]
[338630641,1726818646357,-724.93,0.00013,2]
[338630683,1726818655208,190.04,0.00010959,2]
[338630684,1726818665720,158.37,0.00010959,2]
[338630685,1726818675738,626.95361045,0.00023,120]
[338630686,1726818676240,791.87,0.00010959,2]
[338630687,1726818742145,500.0,0.00022999,120]
[338630688,1726818742480,399.51646516,0.00022999,120]
[338630689,1726818750619,500.0,0.00022999,120]
[338630690,1726818750878,500.0,0.00022999,120]
[338630691,1726818751143,500.0,0.00022999,120]
[338630692,1726818751420,500.0,0.00022999,120]
[338630693,1726818751719,500.0,0.00022999,120]
[338630694,1726818751992,500.0,0.00022999,120]
[338630695,1726818752285,500.0,0.00022999,120]
[338630696,1726818752574,500.0,0.00022999,120]
[338630697,1726818752846,500.0,0.00022999,120]
[338630698,1726818753143,500.0,0.00022999,120]
[338630699,1726818753420,500.0,0.00022999,120]
[338630700,1726818753677,500.0,0.00022999,120]
[338630701,1726818753933,500.0,0.00022999,120]
[338630702,1726818754183,252.79,0.00022999,120]
[338630703,1726818756352,500.0,0.00022999,120]
[338630704,1726818756606,159.81,0.00022999,120]
[338630705,1726818804984,500.0,0.00022999,120]
[338630706,1726818805323,581.74,0.00022999,120]
[338630707,1726818828242,1000.0,0.00012436,2]
[338630708,1726818868922,199.72,0.00010518,2]
[338630709,1726818919777,167.07,0.00012262,2]
[338630710,1726819003085,500.0,0.00022999,120]
[338630711,1726819003343,500.0,0.00022999,120]
[338630712,1726819003593,449.78,0.00022999,120]
[338630713,1726819005599,500.0,0.00022999,120]
[338630714,1726819006799,501.12435045,0.00022999,120]
[338630715,1726819034544,500.0,0.00022999,120]
[338630716,1726819034804,334.43,0.00022999,120]
[338630717,1726819071785,155.64,0.00010959,2]
[338630718,1726819093311,1505.68375638,0.00023,120]
[338630719,1726819112458,400.0,0.00012742,3]
[338630720,1726819148257,193.98,0.00012264,2]
[338630721,1726819153782,350.0,0.00012742,3]
[338630722,1726819163414,250.0,0.00012266,2]
[338630723,1726819205978,500.0,0.00022999,120]
[338630724,1726819208824,589.14551382,0.00022999,120]
[338630726,1726819219678,172.99,9.77e-05,2]
[338630727,1726819231215,150.0,0.00022267,120]
[338630728,1726819267365,500.0,0.00023,120]
[338630729,1726819267567,500.0,0.00023,120]
[338630730,1726819268050,500.0,0.00023,120]
[338630731,1726819268467,500.0,0.00023,120]
[338630732,1726819268964,500.0,0.00023,120]
[338630733,1726819269466,500.0,0.00023,120]
[338630734,1726819270137,500.0,0.00023,120]
[338630735,1726819270610,500.0,0.00023,120]
[338630736,1726819271061,500.0,0.00023,120]
[338630737,1726819271477,182.16259583,0.00023,120]
[338630738,1726819290270,620.92,0.00012212,2]
[338630741,1726819346489,400.0,0.00012742,3]
[338630742,1726819374116,189.79299715,0.00022999,120]
[338630743,1726819376324,500.0,0.00022999,120]
[338630744,1726819376578,500.0,0.00022999,120]
[338630745,1726819376859,253.23,0.00022999,120]
[338630746,1726819390025,200.0,0.00012029,2]
[338630747,1726819423581,350.0,0.00012742,4]
[338630748,1726819449937,1020.0,0.0001264,2]
[338630749,1726819458480,400.0,0.00012742,4]
[338630750,1726819466363,1000.0,0.00015,30]
[338630751,1726819470805,150.0,0.00016985,120]
[338630752,1726819528854,1000.0,0.00022,60]
[338630753,1726819528964,500.67689734,0.00022999,120]
[338630754,1726819529841,500.0,0.00022999,120]
[338630755,1726819530113,500.0,0.00022999,120]
[338630756,1726819530377,500.0,0.00022999,120]
[338630757,1726819530626,500.0,0.00022999,120]
[338630758,1726819530910,500.0,0.00022999,120]
[338630759,1726819530981,549.05,0.00022999,120]
[338630760,1726819531164,500.0,0.00022999,120]
[338630761,1726819531423,500.0,0.00022999,120]
[338630762,1726819531703,500.0,0.00022999,120]
[338630763,1726819532031,500.0,0.00022999,120]
[338630764,1726819532350,500.0,0.00022999,120]
[338630765,1726819532767,500.0,0.00022999,120]
[338630766,1726819533051,355.27452565,0.00022999,120]
[338630767,1726819535233,500.0,0.00022999,120]
[338630768,1726819535689,649.20563505,0.00022999,120]
[338630769,1726819539637,979.39,0.0001201,2]
[338630770,1726819590831,150.0,0.00014519,120]
[338630771,1726819605120,200.27,0.00010098,2]
[338630772,1726819605333,200.27,0.00012362,2]
[338630773,1726819612727,50000.0,0.00022,60]
[338630774,1726819639061,155.36,0.00012007,2]
[338630775,1726819679929,226.31,0.00012017,2]
[338630776,1726819732961,250.0,0.00012117,2]
[338630777,1726819734160,250.0,0.00012117,2]
[338630778,1726819771337,150.0,0.00019351,120]
[338630779,1726819780025,500.34905931,0.00022999,120]
[338630780,1726819783901,500.38804077,0.00022999,120]
[338630788,1726819832284,-1045.29298793,0.000128,2]
[338630789,1726819832294,-1045.29298788,0.00012811,2]
[338630790,1726819832305,-287.07347426,0.00012822,2]
[338630791,1726819832494,-758.21951362,0.00012822,2]
[338630792,1726819832504,-1045.29298788,0.00012833,2]
[338630793,1726819832513,-751.1466185,0.00012844,2]
[338630798,1726819838304,-294.14636938,0.00012844,2]
[338630799,1726819838315,-1045.29298788,0.00012856,2]
[338630800,1726819838324,-1045.29298788,0.00012867,2]
[338630801,1726819838334,-1045.29298788,0.00012878,2]
[338630802,1726819838343,-1045.29298788,0.00012889,2]
[338630803,1726819838353,-150.0,0.00012889,2]
[338630804,1726819838362,-300.0,0.00012889,2]
[338630805,1726819838372,-58681.15185249,0.0001289,2]
[338630806,1726819838578,-113046.40070983,0.0001289,2]
[338630982,1726819840310,-20106.592846,0.0001289,2]
[338630984,1726819840324,-415.1,0.0001289,2]
[338630989,1726819840363,-44502.24261705,0.0001289,2]
[338630996,1726819840523,-266.9185671,0.0001289,2]
[338630997,1726819840579,-1914.0508733,0.0001289,2]
[338631002,1726819843303,-515.14522368,0.0001289,2]
[338631003,1726819843315,-640.224,0.0001289,2]
[338631004,1726819843359,-296.13443335,0.0001289,2]
[338631005,1726819843370,-5626.523833,0.0001289,2]
[338631006,1726819843383,-3989.5150442,0.0001289,2]
[338631007,1726819843392,-1104.9926,0.000129,2]
[338631008,1726819843402,-72.28219505,0.000129,2]
[338631009,1726819843413,-394.50950495,0.000129,2]
[338631010,1726819843422,-309.2275,0.000129,2]
[338631011,1726819843432,-154.9008,0.000129,2]
[338631012,1726819843441,-341.18968902,0.000129,2]
[338631013,1726819843450,-719.1441881,0.000129,2]
[338631014,1726819843460,-217.84328184,0.000129,2]
[338631015,1726819843469,-220.60246218,0.000129,2]
[338631016,1726819843479,-2601.3546717,0.000129,2]
[338631017,1726819843488,-1045.29298788,0.000129,2]
[338631018,1726819843498,-304.94808305,0.00012973,2]
[338631019,1726819843519,-195.05191695,0.00012973,2]
[338631020,1726819843529,-152.82,0.0001299,2]
[338631021,1726819843540,-233.091813,0.00012996,2]
[338631022,1726819843550,-233.091813,0.00012997,2]
[338631023,1726819843560,-233.091813,0.00012997,2]
[338631024,1726819843571,-233.091813,0.00012998,2]
[338631025,1726819843580,-212.869,0.00012999,2]
[338631026,1726819843589,-233.091813,0.00012999,2]
[338631027,1726819843599,-1353.79996805,0.00013,2]
[338631028,1726819843611,-2421.6,0.00013,2]
[338631029,1726819843627,-1732.88242047,0.00013,2]
[338631030,1726819843638,-596.19128733,0.00013,2]
[338631031,1726819843649,-604.07802196,0.00013,2]
[338631032,1726819843661,-8174.20830219,0.00013,2]
[338631033,1726819843671,-69491.42264484,0.00013,2]
[338631034,1726819843680,-15237.64,0.00013,2]
[338631035,1726819843690,-14815.11,0.00013,2]
[338631036,1726819843700,-15147.05,0.00013,2]
[338631037,1726819843709,-15129.31,0.00013,2]
[338631038,1726819843718,-215615.80318077,0.00013,2]
[338631039,1726819843734,-9493.0405304,0.00013,2]
[338631040,1726819843745,-2126.874996,0.00013,2]
[338631041,1726819843757,-767.00700092,0.00013,2]
[338631042,1726819843768,-394.58101345,0.00013,2]
[338631043,1726819843785,-430.65367495,0.00013,2]
[338631044,1726819843796,-707.3898016,0.00013,2]
[338631045,1726819843808,-1322.5531991,0.00013,2]
[338631052,1726819846309,-67555.08890951,0.00013,2]
[338631053,1726819846363,-12589.80803397,0.00013,2]
[338631054,1726819846375,-4983.1836386,0.00013,2]
[338631055,1726819846417,-12720.4,0.00013,2]
[338631056,1726819846471,-414.425,0.00013,2]
[338631057,1726819846683,-153.73177365,0.000129,2]
[338631058,1726819846693,-283.83993461,0.00013,2]
[338631062,1726819849760,570.12,0.00010959,2]
[338631063,1726819866590,500.0,0.00023,120]
[338631064,1726819904906,21866.24552312,0.00012,2]
[338631065,1726819930915,172.99,9.988e-05,2]
[338631066,1726819940796,840.0,0.00012485,2]
[338631067,1726820060853,446.73,0.00012487,2]
[338631068,1726820113918,256.19,0.00012504,2]
[338631069,1726820137258,152.51,0.00012504,2]
[338631070,1726820154190,202.71,0.00010586,2]
[338631071,1726820184186,153.75,0.00010959,2]
[338631072,1726820200348,500.0,0.00012386,2]
[338631073,1726820211005,189.94,0.00012399,2]
[338631074,1726820225769,21239.0,0.00023,120]
[338631075,1726820306383,250.0,0.00012406,2]
[338631076,1726820311738,170.295,0.0001274,2]
[338631077,1726820337819,1050.0,0.00011,2]
[338631079,1726820343049,392.21,0.0001239,2]
[338631080,1726820385941,6923.15372593,0.00023,120]
[338631081,1726820402628,150.0,0.0001239,2]
[338631082,1726820402799,150.0,0.0001239,2]
[338631083,1726820402973,150.0,0.0001239,2]
[338631084,1726820403181,234.28723056,0.0001239,2]
[338631085,1726820467370,500.0,0.00023,120]
[338631086,1726820487098,50000.0,0.00022,60]
[338631087,1726820519402,155.37,0.00012322,2]
[338631088,1726820519615,155.37,0.00012326,2]
[338631089,1726820519826,155.37,0.00012329,2]
[338631090,1726820520038,155.37,0.00012333,2]
[338631091,1726820520261,155.37,0.00012337,2]
[338631092,1726820520462,155.37,0.00012341,2]
[338631093,1726820520716,155.37,0.00012345,2]
[338631094,1726820520926,155.37,0.00012349,2]
[338631095,1726820521151,155.37,0.00012353,2]
[338631096,1726820521361,155.37,0.00012357,2]
[338631097,1726820521573,155.37,0.0001236,2]
[338631098,1726820521778,155.37,0.00012364,2]
[338631099,1726820521997,155.37,0.00012368,2]
[338631100,1726820522207,155.37,0.00012372,2]
[338631101,1726820522506,155.37,0.00012376,2]
[338631102,1726820522665,250.0,0.00012322,2]
[338631103,1726820522743,155.37,0.0001238,2]
[338631104,1726820522959,155.37,0.00012384,2]
[338631105,1726820580436,1000.0,0.00012272,2]
[338631108,1726820677705,176.63,0.00012302,2]
[338631109,1726820747170,177.74,0.00010959,2]
[338631111,1726820868038,224.32,0.00010389,2]
[338631112,1726820868240,224.32,0.00012653,2]
[338631113,1726820875962,289.12,0.00012307,2]
[338631114,1726820897621,218.38,0.00012307,2]
[338631115,1726820910515,238.82,0.00012307,2]
[338631117,1726820963274,150.0,0.00012306,2]
[338631120,1726820981228,204.42,0.00012306,2]
[338631121,1726821010401,250.0,0.00012306,2]